{"text_format":"1","workbook":"xlsx","n_sheets":1,"sheets":["Отчет"],"not_rendered":{"charts":0,"images":0,"macros":1,"external_links":0,"defined_names":0,"comments":0,"pivot_tables":0},"unopened":[],"bounds":{"document_bytes":16777216,"sheet_cells":100000,"rows_first":2000,"rows_last":500,"rows_between":2000,"halvings":0,"cell_chars":16384,"cell_head_chars":4096},"cells_cut":0,"cells_raw":0,"read":"whole","date_system":"1900"}

{"sheet":"Отчет","index":0,"n_rows":81,"n_cols":181,"rows_kept":81,"cut":false,"hidden":false,"merged":[[10,164,10,168],[9,164,9,169],[9,170,9,175],[10,170,10,175],[9,146,9,147],[10,146,10,147],[10,148,10,153],[9,148,9,155],[10,154,10,155],[9,156,9,163],[10,156,10,163],[10,112,10,113],[9,112,9,124],[10,114,10,124],[9,125,9,130],[10,125,10,130],[10,131,10,135],[9,131,9,145],[10,136,10,145],[10,71,10,77],[9,71,9,80],[10,78,10,80],[10,81,10,94],[9,81,9,110],[10,95,10,110],[9,24,9,41],[10,30,10,41],[9,42,9,45],[10,43,10,45],[10,46,10,50],[9,46,9,70],[10,51,10,70],[0,0,0,177],[9,176,12,176],[9,177,12,177],[12,0,12,1],[9,1,11,1],[10,4,10,7],[9,4,9,17],[10,8,10,17],[10,18,10,20],[9,0,11,0],[9,180,12,180],[9,178,12,178],[9,179,12,179],[9,18,9,23],[10,21,10,23],[10,24,10,29]]}
["Кумулятивный рейтинг для выпускников"]
["Учебный год выпуска:  2014/2015 учебный год"]
["Факультет:  Факультет коммуникаций, медиа и дизайна"]
["Уровень образования:  Бакалавриат"]
["Направление \"Журналистика\""]
[]
[]
[]
[]
["Место","Студент","2007/2008 учебный год 3 модуль","2011/2012 учебный год 1 модуль","2011/2012 учебный год 2 модуль",null,null,null,null,null,null,null,null,null,null,null,null,null,"2011/2012 учебный год 3 модуль",null,null,null,null,null,"2011/2012 учебный год 4 модуль",null,null,null,null,null,null,null,null,null,null,null,null,null,null,null,null,null,"2012/2013 учебный год 1 модуль",null,null,null,"2012/2013 учебный год 2 модуль",null,null,null,null,null,null,null,null,null,null,null,null,null,null,null,null,null,null,null,null,null,null,null,null,"2012/2013 учебный год 3 модуль",null,null,null,null,null,null,null,null,null,"2012/2013 учебный год 4 модуль",null,null,null,null,null,null,null,null,null,null,null,null,null,null,null,null,null,null,null,null,null,null,null,null,null,null,null,null,null,"2013/2014 учебный год 1 модуль","2013/2014 учебный год 2 модуль",null,null,null,null,null,null,null,null,null,null,null,null,"2013/2014 учебный год 3 модуль",null,null,null,null,null,"2013/2014 учебный год 4 модуль",null,null,null,null,null,null,null,null,null,null,null,null,null,null,"2014/2015 учебный год 1 модуль",null,"2014/2015 учебный год 2 модуль",null,null,null,null,null,null,null,"2014/2015 учебный год 3 модуль",null,null,null,null,null,null,null,"2014/2015 учебный год 4 модуль",null,null,null,null,null,null,null,null,null,null,null,"Кумулятивный рейтинг","Средняя оценка","Сумма оценок","Количество оценок","Минимальный балл"]
[null,null,"Зачет","Экзамен","Экзамен",null,null,null,"Зачет",null,null,null,null,null,null,null,null,null,"Экзамен",null,null,"Зачет",null,null,"Экзамен",null,null,null,null,null,"Зачет",null,null,null,null,null,null,null,null,null,null,null,"Экзамен","Зачет",null,null,"Экзамен",null,null,null,null,"Зачет",null,null,null,null,null,null,null,null,null,null,null,null,null,null,null,null,null,null,null,"Экзамен",null,null,null,null,null,null,"Зачет",null,null,"Экзамен",null,null,null,null,null,null,null,null,null,null,null,null,null,"Зачет",null,null,null,null,null,null,null,null,null,null,null,null,null,null,null,"Зачет","Экзамен",null,"Зачет",null,null,null,null,null,null,null,null,null,null,"Экзамен",null,null,null,null,null,"Экзамен",null,null,null,null,"Зачет",null,null,null,null,null,null,null,null,null,"Экзамен",null,"Экзамен",null,null,null,null,null,"Зачет",null,"Экзамен",null,null,null,null,null,null,null,"Экзамен",null,null,null,null,"Зачет","Экзамен"]
[null,null,"История западноевропейской музыки: от Баха до Шенберга. Опыт философского анализа и рационального восприятия","Информационные технологии подготовки печатных и электронных СМИ","Математическое введение в экономику","Математическое введение в экономику","Философия","Философия","Безопасность жизнедеятельности","Иностранный язык (английский)","Иностранный язык (английский)","История","История","История западноевропейской музыки: от Баха до Шёнберга. Опыт философского анализа и рационального восприятия","История и теория массовых коммуникаций","Мода, костюм, личность: человек и его одежда в общественном пространстве","Основы Web-дизайна. Часть 2. Каскадные таблицы стилей (CSS)","Физическая культура","Иностранный язык (английский)","Иностранный язык (английский)","История и теория литературы","Кино в культуре современности","Мультимедиа технологии. Уровень 2. Компьютерная графика. Основы работы с Adobe Photoshop","Современная Германия: политика, экономика, общество (изучена на немецком языке)","История","История","История и теория массовых коммуникаций","Научно-практический семинар \"Исследование медиа-процессов\"","Социология","Экономика","Восток и Запад в истории мировых цивилизаций","Научно-практический семинар \"Исследование медиа-процессов\"","Научно-практический семинар \"Исследование медиа-процессов\"","Оборудование и программное обеспечение радиостудии","Основы звукозаписи и радиомонтажа","Политическая система и политический процесс современной России","Практикум по эффективной письменной коммуникации","Психология","Психология","Теория и практика русского литературного языка","Физическая культура","Экономика России","Информационные технологии подготовки печатных и электронных СМИ","Безопасность жизнедеятельности","Безопасность жизнедеятельности","Учебная (ознакомительная) практика","История","История","История и теория литературы","Философия","Экономика","Иностранный язык (английский)","Иностранный язык (английский)","Иностранный язык (английский)","Иностранный язык (французский)","История","История","История","История и теория литературы","Математическое введение в экономику","Научно-практический семинар \"Исследование медиа-процессов\"","Научно-практический семинар \"Исследование медиа-процессов\"","Политология","Политология","Политология","Правоведение","Теория и практика русского литературного языка","Физическая культура","Физическая культура","Философия","Экономика","Иностранный язык (английский)","Иностранный язык (английский)","История и теория литературы","История и теория массовых коммуникаций","Политология","Политология","Политология","Культурология","Правоведение","Развитие университетов: История развития университетов","Выпуск учебной газеты, радио-, телепередач. Профессиональные творческие студии","Иностранный язык (английский)","История","История","Курсовая работа","Курсовая работа","Менеджмент","Научно-практический семинар \"Исследование медиа-процессов\"","Научно-практический семинар \"Исследование медиа-процессов\"","Научно-практический семинар \"Исследование медиа-процессов\"","Психология (включая основы социальной психологии)","Социология","Социология","Экономика","Аналитические жанры в современной журналистике: теория и практика","Иностранный язык (английский)","Иностранный язык (английский)","Иностранный язык (французский)","История и теория литературы","История отечественных телевизионных форматов","Основы режиссёрской и операторской культуры тележурналиста","Развитие университетов: Современный университет и системы высшего образования","Режиссура презентаций и публичных выступлений","Социология","Техника речи","Физическая культура","Физическая культура","Экономика","Экранные искусства в истории зрелищной культуры","Язык СМИ","Первая производственная практика","История","Политическая журналистика","Выпуск учебной газеты, радио-, телепередач. Профессиональные творческие студии","Деловая журналистика","Иностранный язык (английский)","Иностранный язык (английский)","Иностранный язык (французский)","Исследование медиа-процессов","История","История и теория литературы","Правоведение","Физическая культура","Физическая культура","Иностранный язык (английский)","Иностранный язык (английский)","История","История","Правоведение","Теория и практика русского литературного языка","Исследование медиа-процессов","История и теория литературы","Культурология","Курсовая работа","Маркетинг","Выпуск учебной газеты, радио-, телепередач. Профессиональные творческие студии","Дизайн СМИ","Иностранный язык (французский)","Конфликтология","Писатель у микрофона: Довлатов, Аксенов, Бродский в свободном эфире","Психология общения","Техника речи","Традиционные искусства и средства массовой коммуникации","Физическая культура","Физическая культура","Вторая производственная практика","Политическая журналистика","Второй иностранный язык (французский)","Выпуск учебной газеты, радио-, телепередач. Профессиональные творческие студии","История","История","История и теория литературы","Политическая журналистика","Физическая культура","Физическая культура","Государственная информационная политика","Деловая журналистика","Иностранный язык (английский)","Иностранный язык (английский)","Мастерство ведущего теле- и радио программ","Теория и практика русского литературного языка","Цифровой кинематограф: новые концепции визуального","Эволюция взаимоотношений медиа и бизнеса в России","Второй иностранный язык (французский)","Курсовая работа","Междисциплинарный экзамен по направлению подготовки","Подготовка и защита выпускной квалификационной работы","Преддипломная практика","Физическая культура"]
["Число кумулятивных кредитов:",null,2,3,3,4.5,6,9,1.5,3.1,3.72,1.96,3,2,7.33,2,2,0,1.9000000000000001,2.2800000000000002,6,2,0,2,3,4.04,3.67,3,3,6,2,1,3,1.5,3,4.5,3,3,6,3,0,3,3,0,0.5,5,1.96,4,5,6,6,2.57,3.08,3.72,0,2,5,6,2.69,3,1.04,3,3,4.91,5.13,4.3600000000000003,3,0,0.25,6,4,1.92,2.2800000000000002,5,4,1.87,4,4.09,3,2.64,2,6,0,4.04,6,0,5,6,1.96,2,4.5,3,4,4.5,3,3,0.93,5,0,3.31,3,3,2,3,4,0,0,0.25,6,3,3,6,1.81,6,2,3,2.46,3.69,2.48,1.05,3.19,2.69,3.19,0.22,0.44,1.54,2.31,1.81,3.19,1.81,3,1.95,3.31,4,5,4,4,4,2.02,4,4,4,4.5,4,0.28000000000000003,0.56000000000000005,0,3.43,3.86,5,0,5,6,2.57,0,1,3,9,3,4,3,6,3,3,4.1399999999999997,5,3,6,5,1,2,3,4,5,6,8]
[1,"Пожидаева Ирина Владимировна",null,8,null,null,7,null,null,8,null,8,null,null,9,null,null,10,8,null,8,null,null,null,null,8,10,null,9,8,null,null,8,null,null,null,8,null,10,9,10,null,null,null,null,9,null,null,null,null,9,null,8,null,null,null,6,null,10,null,6,null,null,null,9,null,8,10,null,null,null,8,null,null,10,8,null,null,10,null,null,9,null,null,null,null,10,null,9,null,null,null,9,null,null,null,null,null,null,8,8,null,null,null,null,9,10,null,null,null,null,8,null,8,8,8,10,null,null,8,8,8,null,null,10,10,null,7,null,null,9,10,9,10,9,null,10,null,null,null,null,10,null,10,null,10,9,9,null,9,null,null,10,8,null,10,null,9,9,10,null,8,10,null,null,null,6,9,10,10,10,null,8,10,10,null,2301.89,{"$f":"IF(FX14 > 0,FW14/FX14,0)","v":8.8701298701298708},683,77,{"$f":"MIN($C14:FT14)","v":6}]
[2,"Павленко Валентина Юрьевна",null,8,9,null,9,null,null,8,null,8,null,null,9,null,null,10,9,null,8,null,null,null,null,5,9,null,null,9,null,null,9,null,null,null,null,null,10,9,10,9,null,null,null,9,null,null,null,null,9,null,9,null,9,null,7,null,7,null,10,null,null,null,null,9,10,10,null,null,null,7,null,null,10,null,null,null,null,9,null,7,null,null,null,null,10,9,9,null,null,null,null,null,null,null,null,null,9,6,null,9,null,null,null,10,10,null,null,null,null,9,null,9,9,10,10,null,10,9,10,8,9,null,10,10,null,9,null,10,10,9,9,null,10,8,9,null,10,null,null,10,null,10,null,10,10,9,null,7,null,null,10,10,null,10,null,10,10,10,null,10,null,10,null,null,10,10,10,10,null,null,null,null,null,null,2286.5500000000002,{"$f":"IF(FX15 > 0,FW15/FX15,0)","v":9.1666666666666661},715,78,{"$f":"MIN($C15:FT15)","v":5}]
[3,"Латынин Антон Валерьевич",null,9,null,null,7,null,null,4,null,5,null,9,8,null,null,10,5,null,9,null,null,8,null,8,7,null,9,7,null,null,7,null,4,null,null,null,8,6,10,null,null,null,null,10,null,null,null,null,8,null,9,null,8,null,8,null,10,null,10,null,null,null,10,null,9,10,null,null,null,7,null,null,9,10,null,null,10,null,null,10,8,null,null,null,10,null,10,null,null,null,10,null,null,null,null,null,8,8,10,null,null,null,null,10,10,null,null,null,null,10,null,9,8,9,7,null,7,9,8,9,null,null,10,7,null,8,null,null,7,9,9,10,8,null,8,null,8,7,null,null,7,9,null,10,10,4,null,8,null,null,5,8,null,10,10,7,7,8,null,7,null,null,null,null,10,8,8,10,null,4,7,7,5,8,2256.19,{"$f":"IF(FX16 > 0,FW16/FX16,0)","v":8.2093023255813957},706,86,{"$f":"MIN($C16:FT16)","v":4}]
[4,"Гликин Константин Максимович",null,7,null,null,10,null,null,9,null,6,null,null,8,null,null,10,8,null,9,null,null,null,null,9,10,null,10,8,null,null,8,null,null,null,null,null,10,8,10,10,null,null,null,9,null,null,null,null,8,null,10,null,null,null,8,null,10,null,5,null,null,null,10,null,8,10,null,null,null,8,null,null,8,10,null,null,10,null,null,7,null,null,null,null,9,null,9,null,null,null,8,null,null,null,null,null,null,8,9,null,null,null,null,null,10,null,null,null,null,8,null,9,10,9,9,null,null,8,9,8,null,null,10,8,null,8,null,null,9,9,10,10,10,null,9,null,null,10,10,null,8,null,null,10,9,10,null,10,null,null,10,10,null,10,null,10,10,10,null,9,null,10,null,null,10,10,10,10,null,null,null,null,null,null,2255.16,{"$f":"IF(FX17 > 0,FW17/FX17,0)","v":9.0821917808219172},663,73,{"$f":"MIN($C17:FT17)","v":5}]
[5,"Васильева Маргарита Николаевна",null,10,null,null,9,null,null,9,null,7,null,null,9,null,8,10,8,null,8,null,9,null,null,8,9,null,9,8,null,null,9,9,null,null,10,null,9,10,10,null,null,null,null,10,null,null,null,null,9,null,9,null,10,null,9,null,10,null,10,null,null,null,8,null,10,10,null,null,null,7,null,null,9,8,null,null,10,null,null,9,null,null,null,null,10,null,9,null,null,null,9,null,null,null,null,null,10,9,9,null,null,null,null,null,10,null,null,null,null,10,null,7,10,9,10,null,8,10,9,7,null,null,10,10,null,8,null,null,9,8,9,10,10,null,9,null,8,null,10,8,null,null,null,10,10,8,null,10,null,null,9,10,null,10,null,5,9,10,null,8,10,null,null,null,9,10,9,10,null,null,null,null,null,null,2236.58,{"$f":"IF(FX18 > 0,FW18/FX18,0)","v":9.0886075949367093},718,79,{"$f":"MIN($C18:FT18)","v":5}]
[6,"Львова Анастасия Артуровна",null,10,9,null,9,null,null,8,null,5,null,9,9,null,null,10,7,null,8,null,null,null,null,6,10,null,null,9,10,null,10,8,null,null,9,null,9,9,10,null,null,null,null,10,null,null,null,null,8,null,8,null,9,null,5,null,7,null,9,null,null,null,null,8,9,10,null,null,null,7,null,null,9,null,null,null,null,9,null,10,null,null,null,null,8,7,8,null,null,null,null,null,null,null,null,null,9,6,null,10,null,null,null,10,10,null,null,null,null,10,null,8,10,9,8,null,null,9,8,8,9,null,10,7,null,8,null,10,10,8,10,null,9,7,9,null,null,8,10,null,9,null,null,10,10,9,null,8,null,null,10,9,null,10,null,9,10,9,null,8,9,null,null,null,10,8,9,10,null,null,null,null,null,null,2226.6999999999998,{"$f":"IF(FX19 > 0,FW19/FX19,0)","v":8.7750000000000004},702,80,{"$f":"MIN($C19:FT19)","v":5}]
[7,"Мухаметдинова Элина Шамилевна",null,7,8,null,7,null,null,10,null,6,null,null,9,null,null,10,10,null,6,null,null,null,null,6,10,null,null,4,null,null,7,null,null,null,null,null,9,8,10,9,null,null,null,9,null,null,null,null,7,null,10,null,9,null,8,null,8,null,9,null,null,null,null,6,9,10,null,null,null,9,null,null,8,null,null,null,null,7,null,10,null,null,null,null,10,7,9,null,null,null,null,null,null,null,null,null,9,6,null,10,null,null,null,9,10,null,null,null,null,9,null,9,8,9,10,null,9,8,8,7,8,null,10,10,null,5,null,8,9,8,10,null,5,9,10,null,8,8,6,null,null,null,null,10,10,8,null,6,null,null,10,7,null,10,10,8,10,9,null,8,null,null,null,null,8,9,10,10,10,null,9,9,10,null,2225.1799999999998,{"$f":"IF(FX20 > 0,FW20/FX20,0)","v":8.5},697,82,{"$f":"MIN($C20:FT20)","v":4}]
[8,"Разумовская Мария Алексеевна",null,8,9,null,8,null,null,7,null,7,null,null,8,null,null,10,9,null,8,null,null,null,null,6,9,null,null,8,null,null,8,null,9,null,null,null,10,9,10,null,null,null,null,10,null,null,null,null,8,null,9,null,9,null,6,null,9,null,6,null,null,null,null,6,9,10,null,null,null,7,null,null,10,null,null,null,null,9,null,9,null,null,null,null,10,8,8,null,null,null,null,null,null,null,null,null,10,8,null,9,null,null,null,9,10,null,null,null,null,9,null,8,10,9,8,null,10,9,10,8,9,null,10,8,null,9,null,10,10,10,9,null,9,8,10,null,10,null,10,10,null,null,null,10,10,10,null,8,null,null,10,9,null,10,10,10,9,9,null,9,null,null,null,null,9,8,10,10,null,null,null,null,null,null,2216.81,{"$f":"IF(FX21 > 0,FW21/FX21,0)","v":8.9230769230769234},696,78,{"$f":"MIN($C21:FT21)","v":6}]
[9,"Кристалинская Мария Валерьевна",null,8,9,null,9,null,null,10,null,7,null,null,9,null,null,10,10,null,8,null,null,null,null,9,9,null,null,8,null,null,9,null,null,null,null,null,9,9,10,10,null,null,null,10,null,null,null,null,9,null,9,null,null,null,8,null,9,null,8,null,null,null,null,8,9,10,null,null,null,8,null,null,8,null,null,null,null,9,null,7,null,null,null,null,10,8,8,null,null,null,null,null,null,null,null,null,null,8,null,10,null,null,null,null,10,null,null,null,null,10,null,8,10,9,10,null,null,9,9,8,8,null,10,10,null,9,null,7,8,10,10,null,9,8,9,null,null,null,10,10,null,null,null,10,9,10,null,8,null,null,10,10,null,10,null,9,9,9,null,8,null,10,null,null,10,9,10,10,null,null,null,null,null,null,2212.25,{"$f":"IF(FX22 > 0,FW22/FX22,0)","v":9.0547945205479454},661,73,{"$f":"MIN($C22:FT22)","v":7}]
[10,"Бурмистрова Анастасия Денисовна",null,8,8,null,8,null,null,8,null,4,null,null,8,10,null,10,10,null,8,null,null,null,null,6,9,null,null,9,null,null,8,null,null,null,null,null,9,9,10,9,null,null,null,10,null,null,null,null,9,null,9,null,9,null,8,null,9,null,10,null,null,null,null,6,9,10,null,null,null,8,null,null,9,null,null,null,null,7,null,10,null,null,null,null,9,9,8,null,null,null,null,null,null,null,null,null,10,8,9,null,null,null,null,null,10,null,null,null,null,10,null,8,8,8,10,null,10,8,8,8,7,null,10,10,null,9,null,9,10,9,9,null,10,8,8,null,9,null,null,10,null,10,null,10,10,9,null,8,null,null,10,8,null,10,null,8,7,9,null,8,null,9,null,null,7,9,10,10,null,null,null,null,null,null,2198.1399999999994,{"$f":"IF(FX23 > 0,FW23/FX23,0)","v":8.7820512820512828},685,78,{"$f":"MIN($C23:FT23)","v":4}]
[11,"Ихно Дарья Сергеевна",null,7,10,null,10,null,null,9,null,10,null,null,8,null,null,10,10,null,8,null,null,null,null,10,9,null,null,8,null,null,7,null,null,null,9,null,9,9,10,null,null,null,null,9,null,null,null,null,9,null,9,null,10,null,8,null,9,null,9,null,null,null,null,8,10,10,null,null,null,8,null,null,8,null,null,null,null,8,null,7,null,null,null,null,10,9,9,null,null,null,null,null,null,null,null,null,10,8,null,10,null,null,null,null,10,null,null,null,null,8,null,9,10,9,10,null,null,10,9,8,9,null,10,10,null,8,null,10,10,8,9,null,10,8,8,10,null,null,null,10,null,null,null,10,10,10,null,7,null,null,10,10,null,10,null,7,8,10,null,9,10,null,null,null,8,8,10,10,null,null,null,null,null,null,2186.75,{"$f":"IF(FX24 > 0,FW24/FX24,0)","v":9.08},681,75,{"$f":"MIN($C24:FT24)","v":7}]
[12,"Фалькон Анастасия Александровна",null,8,8,null,8,null,null,8,null,4,null,null,8,null,null,10,8,null,8,null,null,null,null,6,10,null,null,8,null,null,8,8,8,null,null,null,8,8,10,null,null,null,null,7,null,null,null,null,8,null,8,null,9,null,8,null,9,null,8,null,null,null,null,5,8,10,null,null,null,7,null,null,8,null,null,null,null,7,9,8,null,null,null,null,10,7,8,null,null,null,null,null,null,null,null,null,9,10,null,8,9,null,null,10,10,null,null,null,null,8,null,8,8,9,8,null,8,9,8,9,7,null,10,7,null,7,null,10,8,9,10,null,10,7,8,null,8,null,8,9,9,null,null,10,10,8,null,8,null,null,10,8,null,10,10,9,10,10,null,7,null,null,null,null,8,10,8,10,null,null,null,null,null,null,2165.98,{"$f":"IF(FX25 > 0,FW25/FX25,0)","v":8.4390243902439028},692,82,{"$f":"MIN($C25:FT25)","v":4}]
[13,"Самарина Евгения Олеговна",null,6,8,null,8,null,null,9,null,5,null,null,9,null,null,10,8,null,9,null,null,null,null,5,10,null,null,8,null,null,10,null,null,null,null,null,9,9,10,9,null,null,null,8,null,null,null,null,8,null,10,null,9,null,8,null,10,null,10,null,null,null,null,8,8,10,null,null,null,8,null,null,8,null,null,null,null,9,null,7,null,null,null,null,9,8,9,null,null,null,null,null,null,null,null,null,9,8,10,null,null,null,null,10,10,null,null,null,null,7,null,9,8,10,10,null,9,10,8,8,8,null,10,10,null,7,null,10,9,9,10,null,9,8,9,null,10,null,null,10,null,10,null,10,10,9,null,7,null,null,10,9,null,10,null,10,7,8,9,7,null,null,null,null,10,7,10,10,null,null,null,null,null,null,2162.9899999999998,{"$f":"IF(FX26 > 0,FW26/FX26,0)","v":8.8076923076923084},687,78,{"$f":"MIN($C26:FT26)","v":5}]
[14,"Чумакова Инга Константиновна",null,8,9,null,8,null,null,9,null,8,null,null,9,null,null,10,9,null,9,7,null,null,null,7,8,null,null,7,null,null,9,null,7,null,null,null,10,8,10,null,null,null,null,8,null,null,null,null,8,null,9,null,8,null,5,null,7,null,8,null,null,null,null,5,9,10,null,null,null,8,null,null,9,null,null,null,null,9,null,9,null,null,null,null,10,8,8,null,null,null,null,null,null,null,null,null,8,6,null,9,null,null,null,8,10,null,null,null,null,10,null,8,9,9,8,null,8,10,8,8,9,null,10,8,null,8,null,8,10,9,9,null,10,7,9,null,8,null,10,10,null,null,null,10,9,10,null,8,null,null,10,8,null,10,null,7,8,10,null,8,9,null,null,null,8,10,9,10,null,null,null,null,null,null,2155.0299999999997,{"$f":"IF(FX27 > 0,FW27/FX27,0)","v":8.5822784810126578},678,79,{"$f":"MIN($C27:FT27)","v":5}]
[15,"Акумова Анна Дмитриевна",null,8,8,null,8,null,null,9,null,5,null,null,8,null,null,10,9,null,8,null,null,null,null,6,8,null,null,9,null,null,8,null,null,null,9,null,8,9,10,null,null,null,null,9,null,null,null,null,9,null,8,null,10,null,6,null,9,null,9,null,null,null,null,6,8,10,null,null,null,8,null,null,9,null,null,null,null,9,null,9,null,null,null,null,10,8,9,null,null,null,null,null,null,null,null,null,10,6,9,null,null,null,null,9,10,null,null,null,null,10,null,9,7,9,10,null,9,10,7,8,9,null,10,10,null,7,null,7,9,8,10,null,10,7,9,null,9,8,10,null,null,null,null,10,10,10,null,8,null,null,10,7,null,10,null,7,10,10,null,8,9,null,null,null,7,10,9,10,null,null,null,null,null,null,2141.92,{"$f":"IF(FX28 > 0,FW28/FX28,0)","v":8.6794871794871788},677,78,{"$f":"MIN($C28:FT28)","v":5}]
[16,"Ткачук Анфиса Сергеевна",null,6,null,null,10,null,null,7,null,5,null,null,9,null,null,10,7,null,7,null,null,null,null,5,8,null,9,8,null,null,9,null,8,null,null,null,9,8,10,null,null,null,null,10,null,null,null,null,9,null,8,null,9,null,8,null,8,null,7,null,null,null,8,null,8,10,null,null,null,7,null,null,9,8,null,null,10,null,null,9,null,null,null,null,10,null,9,null,null,null,6,null,null,null,null,null,9,8,9,null,null,null,null,null,10,null,null,null,null,8,null,8,9,8,10,null,null,7,8,8,null,null,10,10,null,8,null,null,8,9,8,10,10,null,9,null,null,null,10,10,null,null,null,10,10,9,null,9,null,null,10,6,null,10,null,8,9,10,null,10,9,null,null,null,9,8,10,10,null,null,null,null,null,null,2093.5199999999995,{"$f":"IF(FX29 > 0,FW29/FX29,0)","v":8.6351351351351351},639,74,{"$f":"MIN($C29:FT29)","v":5}]
[17,"Пенкина Анастасия Валерьевна",null,8,null,null,9,null,null,7,null,8,null,null,8,null,null,10,8,null,8,null,null,null,null,8,9,null,10,8,null,null,9,null,null,null,9,null,9,9,10,null,null,null,null,9,null,null,null,null,9,null,9,null,null,null,8,null,9,null,5,null,null,null,10,null,9,10,null,null,null,7,null,null,9,10,null,null,6,null,null,7,null,null,null,null,9,null,9,null,null,null,8,null,null,null,null,null,null,7,null,9,null,null,null,null,10,null,null,null,null,8,null,8,8,9,8,null,null,9,7,8,null,null,10,9,null,6,null,null,8,9,10,10,9,null,10,null,null,8,null,null,null,9,null,10,10,7,null,9,null,null,10,9,null,10,null,8,10,10,null,10,8,null,null,null,9,8,8,10,null,null,null,null,null,null,2090.4399999999996,{"$f":"IF(FX30 > 0,FW30/FX30,0)","v":8.6805555555555554},625,72,{"$f":"MIN($C30:FT30)","v":5}]
[18,"Агрызкова Юлия Игоревна",null,8,9,null,9,null,null,6,null,6,null,null,7,null,null,10,7,null,8,null,null,null,null,6,8,null,null,5,null,null,8,null,null,null,null,null,9,9,10,9,null,null,null,9,null,null,null,null,6,null,8,null,8,null,7,null,8,null,4,null,null,null,null,7,8,10,null,null,null,6,null,null,8,null,null,null,null,9,null,10,null,null,null,null,9,9,6,null,null,null,null,null,null,null,null,null,8,6,8,null,null,null,null,null,10,null,null,null,null,8,null,9,10,9,8,null,8,8,7,8,8,null,10,8,null,6,null,9,7,9,9,null,10,7,8,null,8,null,null,9,null,8,null,10,10,9,null,9,null,null,10,9,null,10,null,9,8,10,null,8,null,10,null,null,10,10,10,10,null,null,null,null,null,null,2086.5699999999997,{"$f":"IF(FX31 > 0,FW31/FX31,0)","v":8.324675324675324},641,77,{"$f":"MIN($C31:FT31)","v":4}]
[19,"Юхим Оксана Михайловна",null,7,8,null,10,null,null,9,null,6,null,null,8,null,null,10,9,null,9,null,null,null,null,5,8,null,null,6,null,null,7,10,10,null,null,null,8,8,10,null,null,null,null,10,null,null,null,null,7,null,9,null,9,null,8,null,8,null,6,null,null,null,null,8,8,10,null,null,null,7,null,null,8,null,null,null,null,8,null,10,null,null,null,null,9,8,8,null,null,null,null,null,null,null,null,null,9,7,null,9,null,null,null,9,10,null,null,null,null,10,null,8,8,8,8,null,8,7,8,9,8,null,10,9,null,6,null,8,7,8,10,null,10,6,8,null,8,null,10,8,null,null,null,10,10,9,null,7,null,null,9,8,null,10,null,8,10,9,8,7,null,null,null,null,7,7,9,10,null,null,null,null,null,null,2085.3399999999992,{"$f":"IF(FX32 > 0,FW32/FX32,0)","v":8.3670886075949369},661,79,{"$f":"MIN($C32:FT32)","v":5}]
[20,"Вергазова Анна Тимуровна",null,7,6,null,8,null,null,10,null,5,null,null,8,null,null,10,8,null,8,null,null,null,null,6,9,null,null,6,null,null,9,null,null,null,8,null,9,9,10,null,null,null,null,10,null,null,null,null,8,null,9,null,8,null,5,null,8,null,6,null,null,null,null,8,9,10,null,null,null,8,null,null,7,null,null,null,null,8,null,10,null,null,null,null,10,7,8,null,null,null,null,null,null,null,null,null,7,8,null,7,null,null,null,null,10,null,null,null,null,9,null,8,7,9,9,null,9,7,7,8,9,null,10,10,null,7,null,8,8,9,9,null,10,8,8,null,9,null,8,10,null,null,null,10,10,6,null,9,null,null,9,6,null,10,null,9,10,8,null,8,null,10,null,null,10,6,9,10,null,null,null,null,null,null,2077.35,{"$f":"IF(FX33 > 0,FW33/FX33,0)","v":8.3506493506493502},643,77,{"$f":"MIN($C33:FT33)","v":5}]
[21,"Донцова Анна Юрьевна",null,8,9,null,8,null,null,7,null,5,null,null,8,null,null,10,5,null,8,null,null,null,null,7,9,null,null,7,null,null,8,8,null,null,null,null,8,9,10,8,null,null,null,10,null,null,null,null,7,null,6,null,"нет оценки ",null,8,null,9,null,10,null,null,null,null,6,8,10,null,null,null,6,null,null,7,null,null,null,null,9,null,8,null,null,null,null,8,8,9,null,null,null,null,null,null,null,null,null,9,7,null,9,null,null,null,null,10,null,null,null,null,9,null,9,8,9,9,null,9,7,6,8,9,null,10,9,null,7,null,10,7,8,8,null,8,6,9,null,9,7,null,null,null,10,null,10,8,9,null,8,null,null,10,9,null,10,null,9,7,9,null,8,null,10,null,null,7,8,10,10,null,null,null,null,null,null,2072.3599999999997,{"$f":"IF(FX34 > 0,FW34/FX34,0)","v":8.2987012987012996},639,77,{"$f":"MIN($C34:FT34)","v":5}]
[22,"Сорокина Мария Михайловна",null,8,10,null,9,null,null,8,null,5,null,null,8,null,null,10,8,null,8,null,null,null,null,6,8,null,null,7,null,null,10,7,null,null,null,null,8,8,10,10,null,null,null,10,null,null,null,null,7,null,8,null,null,null,6,null,4,null,6,null,null,null,null,6,8,10,null,null,null,7,null,null,5,null,null,null,null,8,null,10,null,null,null,null,8,7,7,null,null,null,null,null,null,null,null,null,null,8,null,10,null,null,null,9,10,null,null,null,null,8,null,9,9,9,8,null,null,9,9,8,8,null,10,9,null,8,null,9,6,9,8,null,8,9,9,null,null,7,10,null,null,null,null,10,9,9,null,8,null,null,10,8,null,10,null,10,8,8,10,8,null,null,null,null,10,9,10,10,null,null,null,null,null,null,2061.0699999999997,{"$f":"IF(FX35 > 0,FW35/FX35,0)","v":8.3733333333333331},628,75,{"$f":"MIN($C35:FT35)","v":4}]
[23,"Сарвина Наталья Александровна",null,7,null,null,8,null,null,5,null,4,null,null,9,null,null,10,8,null,8,null,null,null,null,6,9,null,7,8,null,null,8,null,null,null,10,null,10,9,10,null,null,null,null,10,null,null,null,null,8,null,7,null,null,null,5,null,10,null,10,null,null,null,9,null,8,10,null,null,null,6,null,null,8,9,null,null,8,null,null,9,null,null,null,null,10,null,10,null,null,null,9,null,null,null,null,null,null,7,null,10,null,null,null,6,10,null,null,null,null,10,null,9,10,10,8,null,null,7,6,7,null,null,10,8,null,7,null,null,9,10,10,10,7,null,9,null,null,null,10,10,null,null,null,10,7,10,null,9,null,null,9,6,null,10,null,7,5,8,null,8,null,10,null,null,10,8,9,10,null,null,null,null,null,null,2052.2399999999998,{"$f":"IF(FX36 > 0,FW36/FX36,0)","v":8.4657534246575334},618,73,{"$f":"MIN($C36:FT36)","v":4}]
[24,"Кудряшова Юлия Ивановна",null,8,7,null,8,null,null,7,null,5,null,null,8,null,null,10,5,null,8,null,null,null,null,6,10,null,null,4,null,null,7,9,9,null,null,null,7,8,10,null,null,null,null,9,null,null,null,null,7,null,8,null,8,null,5,null,10,null,7,null,null,null,null,8,9,10,null,null,null,7,null,null,9,null,null,null,null,8,null,10,null,null,null,null,9,9,8,null,null,null,null,null,null,null,null,null,8,6,8,null,null,null,null,9,10,null,null,null,null,9,null,9,10,8,7,null,7,10,6,8,9,null,10,6,null,6,null,7,8,9,8,null,10,7,8,null,8,null,7,9,null,null,null,10,10,8,null,8,null,null,10,8,null,10,null,8,7,8,null,7,null,10,null,null,9,9,10,10,null,null,null,null,null,null,2038.29,{"$f":"IF(FX37 > 0,FW37/FX37,0)","v":8.1772151898734169},646,79,{"$f":"MIN($C37:FT37)","v":4}]
[25,"Калачина Анна Андреевна",null,7,null,null,7,null,null,8,null,5,null,null,8,null,null,10,8,null,7,null,null,null,null,7,8,null,7,5,null,null,9,7,null,null,8,null,10,8,10,null,null,null,null,7,null,null,null,null,9,null,9,null,7,null,4,null,9,null,4,null,null,null,8,null,8,10,null,null,null,7,null,null,8,10,null,null,8,null,null,9,null,null,null,null,6,null,9,null,null,null,8,null,null,null,null,null,7,6,null,9,null,null,null,6,10,null,null,null,null,10,null,10,8,9,7,null,6,9,6,6,null,null,10,9,null,6,null,null,8,8,10,9,10,null,9,10,7,null,null,9,null,null,null,10,8,8,null,10,null,null,10,5,null,10,null,7,9,10,null,7,9,null,null,null,10,7,9,10,null,null,null,null,null,null,2012.03,{"$f":"IF(FX38 > 0,FW38/FX38,0)","v":8.1025641025641022},632,78,{"$f":"MIN($C38:FT38)","v":4}]
[26,"Мирошкина Дарья Александровна",null,8,9,null,7,null,null,6,null,5,null,null,8,null,null,10,7,null,8,null,null,null,null,8,9,null,null,7,null,null,10,8,8,null,null,null,8,9,10,null,null,null,null,8,null,null,null,null,7,null,7,null,9,null,8,null,9,null,4,null,null,null,null,5,8,10,null,null,null,6,null,null,8,null,null,null,null,9,null,9,null,null,null,null,10,8,6,null,null,null,null,null,null,null,null,null,9,8,null,10,null,null,null,9,10,null,null,null,null,9,null,8,9,8,6,null,null,10,9,7,9,null,10,6,null,9,null,9,10,9,8,null,9,8,8,null,null,null,null,9,null,10,null,10,10,6,null,9,null,null,9,4,null,10,null,9,6,7,null,4,null,10,null,null,8,9,10,10,null,null,null,null,null,null,2010.1599999999999,{"$f":"IF(FX39 > 0,FW39/FX39,0)","v":8.220779220779221},633,77,{"$f":"MIN($C39:FT39)","v":4}]
[27,"Лукьянов Алексей Константинович",9,8,null,null,8,null,null,6,null,5,null,null,8,null,null,10,6,null,8,null,null,null,null,4,8,null,6,7,null,null,7,null,null,null,9,null,8,7,10,null,null,null,null,8,null,null,null,null,8,null,9,null,7,null,6,null,9,null,4,null,null,null,10,null,8,10,null,null,null,7,null,null,7,9,null,null,10,null,null,7,null,null,null,null,8,null,9,null,null,null,8,null,null,null,null,null,7,7,10,null,null,null,null,null,10,null,null,null,null,8,null,8,7,8,8,null,6,9,6,8,null,null,10,8,null,7,null,null,9,8,7,10,10,null,8,null,8,null,10,10,null,null,null,10,10,10,null,9,null,null,9,10,null,10,null,7,9,10,null,8,8,null,null,null,7,7,8,10,null,null,null,null,null,null,2003.0200000000004,{"$f":"IF(FX40 > 0,FW40/FX40,0)","v":8.1428571428571423},627,77,{"$f":"MIN($C40:FT40)","v":4}]
[28,"Федотова Елена Андреевна",null,8,null,null,8,null,null,8,null,6,null,null,7,null,null,10,8,null,7,null,null,null,null,4,9,null,5,5,null,null,9,10,10,null,null,null,9,7,10,null,null,null,null,10,null,null,null,null,5,null,8,null,null,null,6,null,7,null,5,null,null,null,10,null,7,10,null,null,null,8,null,null,7,9,null,null,7,null,null,9,null,null,null,null,6,null,8,null,null,null,6,null,null,null,null,null,null,7,null,9,null,null,null,10,10,null,null,null,null,9,null,8,9,8,8,null,null,9,7,8,null,null,10,8,null,7,null,null,8,10,9,10,10,null,9,null,null,7,null,null,7,10,null,10,10,7,null,9,null,null,9,6,null,10,null,9,9,9,null,6,8,null,null,null,9,10,10,10,null,null,null,null,null,null,1994.46,{"$f":"IF(FX41 > 0,FW41/FX41,0)","v":8.2133333333333329},616,75,{"$f":"MIN($C41:FT41)","v":4}]
[29,"Рыхлик Наталья Николаевна",null,8,null,null,9,null,null,4,null,5,null,null,9,null,null,10,5,null,8,null,null,null,null,5,9,null,7,7,null,null,8,9,9,null,null,null,9,8,10,null,null,null,null,9,null,null,null,null,9,null,6,null,null,null,7,null,9,null,7,null,null,null,8,null,9,10,null,null,null,5,null,null,7,8,null,null,8,null,null,8,null,null,null,null,4,null,7,null,null,null,6,null,null,null,null,null,null,6,null,8,null,null,null,8,10,null,null,null,null,8,null,8,7,8,7,null,null,8,8,8,null,null,10,7,null,8,null,null,9,8,10,10,10,null,8,null,null,null,10,10,null,null,null,10,9,8,null,10,null,null,9,6,null,10,null,8,7,9,null,10,10,null,null,null,8,8,9,10,null,null,null,null,null,null,1983.0300000000002,{"$f":"IF(FX42 > 0,FW42/FX42,0)","v":8.121621621621621},601,74,{"$f":"MIN($C42:FT42)","v":4}]
[30,"Романова Юлия Владимировна",null,7,null,null,6,null,null,8,null,8,null,null,8,null,null,10,7,null,8,null,null,null,null,8,10,null,8,6,null,null,7,null,null,null,9,null,9,8,10,null,null,null,null,10,null,null,null,null,6,null,7,null,null,null,8,null,9,null,4,null,null,null,6,null,8,10,null,null,null,6,null,null,9,8,null,null,5,null,null,9,null,null,null,null,6,null,9,null,null,null,7,null,null,null,null,null,null,4,10,null,null,null,null,7,10,null,null,null,null,10,null,9,7,8,8,null,null,9,8,8,null,null,10,8,null,7,null,null,6,10,7,9,9,null,9,10,null,8,null,null,null,null,null,10,9,10,null,9,null,null,9,6,null,10,null,9,7,9,null,8,10,null,null,null,7,10,10,10,null,null,null,null,null,null,1982.0600000000002,{"$f":"IF(FX43 > 0,FW43/FX43,0)","v":8.1917808219178081},598,73,{"$f":"MIN($C43:FT43)","v":4}]
[31,"Полибенцева Анна Владимировна",null,8,null,null,8,null,null,7,null,4,null,null,9,null,null,10,8,null,8,null,null,null,null,5,9,null,9,7,null,null,9,7,7,null,null,null,8,8,10,null,null,null,null,10,null,null,null,null,8,null,7,null,8,null,5,null,9,null,4,null,null,null,9,null,9,10,null,null,null,6,null,null,6,8,null,null,4,null,null,6,null,null,null,null,9,null,7,null,null,null,7,null,null,null,null,null,8,6,8,null,null,null,null,5,10,null,null,null,null,9,null,9,8,8,8,null,null,8,9,8,null,null,10,8,null,8,null,null,7,10,9,9,8,null,8,9,null,null,null,9,null,null,null,10,9,10,null,9,null,null,10,8,null,10,null,9,8,9,null,8,8,null,null,null,8,7,10,10,null,null,null,null,null,null,1980.86,{"$f":"IF(FX44 > 0,FW44/FX44,0)","v":8.0921052631578956},615,76,{"$f":"MIN($C44:FT44)","v":4}]
[32,"Носик Виктория Павловна",null,7,null,null,7,null,null,9,null,5,null,null,8,null,null,10,9,null,8,null,null,null,null,7,8,null,8,9,null,null,9,null,8,null,null,null,8,9,10,null,null,null,null,8,null,null,null,null,7,null,9,null,null,null,8,null,8,null,5,null,null,null,8,null,8,10,null,null,null,8,null,null,9,8,null,null,10,null,null,9,null,null,null,null,10,null,7,null,null,null,7,null,null,null,null,null,null,7,null,9,null,null,null,null,10,null,null,null,null,10,null,8,6,10,10,null,null,7,7,7,null,null,10,10,null,6,null,null,9,6,8,8,10,null,8,null,null,null,null,9,null,8,null,10,9,7,null,9,null,null,9,5,null,10,null,7,9,10,null,7,8,null,null,null,6,7,8,10,null,null,null,null,null,null,1978.1799999999996,{"$f":"IF(FX45 > 0,FW45/FX45,0)","v":8.2222222222222214},592,72,{"$f":"MIN($C45:FT45)","v":5}]
[33,"Понтус Юлия Игоревна",null,7,null,null,9,null,null,6,null,6,null,null,8,null,null,10,7,null,7,null,null,null,null,7,10,null,8,7,null,null,6,9,9,null,null,null,8,8,10,null,null,null,null,9,null,null,null,null,8,null,7,null,null,null,8,null,10,null,8,null,null,null,7,null,7,10,null,null,null,6,null,null,9,7,null,null,10,null,null,9,null,null,null,null,8,null,6,null,null,null,8,null,null,null,null,null,null,7,null,10,null,null,null,8,10,null,null,null,null,10,null,8,8,8,8,null,null,8,7,7,null,null,10,8,null,5,null,null,7,6,7,6,10,null,9,null,null,null,7,8,null,null,null,10,9,8,null,9,null,null,9,6,null,10,null,9,7,9,null,8,null,10,null,null,6,9,8,10,null,null,null,null,null,null,1973.35,{"$f":"IF(FX46 > 0,FW46/FX46,0)","v":8.0810810810810807},598,74,{"$f":"MIN($C46:FT46)","v":5}]
[34,"Бабаянц Виолетта Владимировна",null,7,5,null,7,null,null,6,null,7,null,null,9,null,null,10,7,null,9,null,null,null,null,4,8,null,null,4,null,null,8,null,null,null,null,null,8,9,10,9,null,null,null,8,null,null,null,null,5,null,8,null,null,null,5,null,8,null,7,null,null,null,null,5,9,10,null,null,null,6,null,null,9,null,null,null,null,8,null,9,null,null,null,null,8,7,7,null,null,null,null,null,null,null,null,null,null,6,null,9,null,null,null,null,10,null,null,null,null,8,null,7,9,8,8,null,null,8,6,8,8,null,10,8,null,7,null,9,8,9,9,null,9,8,8,null,null,null,10,10,null,null,null,10,10,9,null,8,null,null,10,8,null,10,null,9,7,10,10,9,null,null,null,null,10,10,8,10,null,null,null,null,null,null,1966.8799999999999,{"$f":"IF(FX47 > 0,FW47/FX47,0)","v":8.1369863013698627},594,73,{"$f":"MIN($C47:FT47)","v":4}]
[35,"Николаева Ирина Александровна",null,9,null,7,null,6,8,null,8,null,7,null,10,null,null,10,null,8,9,null,null,null,6,null,10,null,4,6,null,7,null,null,null,6,null,7,null,9,10,null,null,null,null,8,null,null,null,null,6,null,null,8,null,null,null,4,7,null,null,5,null,5,null,null,7,10,null,null,null,null,7,null,10,null,null,6,6,null,null,10,null,null,null,5,null,null,null,null,8,null,null,4,null,null,null,null,null,10,null,null,null,null,null,null,10,null,null,null,7,9,8,8,6,7,null,9,null,8,null,7,null,10,null,null,9,null,8,null,8,6,9,10,10,null,9,null,null,null,8,10,null,null,10,null,8,7,null,8,null,null,8,5,null,10,null,7,9,9,8,6,null,null,null,null,7,8,8,10,null,null,null,null,null,null,1945.82,{"$f":"IF(FX48 > 0,FW48/FX48,0)","v":7.7972972972972974},577,74,{"$f":"MIN($C48:FT48)","v":4}]
[36,"Нагдалиева Злата Фархадовна",null,7,null,null,5,null,null,8,null,8,null,null,8,null,null,10,8,null,9,null,null,null,null,5,9,null,7,5,null,null,7,null,10,null,null,null,9,8,10,null,null,null,null,10,null,null,null,null,7,null,9,null,7,null,4,null,7,null,4,null,null,null,8,null,7,10,null,null,null,8,null,null,8,6,null,null,10,null,null,10,null,null,null,null,9,null,9,null,null,null,7,null,null,null,null,null,7,7,8,null,null,null,null,7,10,null,null,null,null,9,null,7,6,8,10,null,null,7,8,7,null,null,10,10,null,7,null,null,9,9,9,9,9,null,8,null,null,null,null,8,null,9,null,10,9,7,null,9,null,null,8,6,null,10,null,7,6,10,null,8,8,null,null,null,8,10,8,10,null,null,null,null,null,null,1934.83,{"$f":"IF(FX49 > 0,FW49/FX49,0)","v":8.0666666666666664},605,75,{"$f":"MIN($C49:FT49)","v":4}]
[37,"Зиятдинова Раина Рамилевна",null,null,null,null,null,null,null,null,null,null,null,null,8,null,null,null,null,null,null,null,null,null,null,null,8,9,null,null,null,null,null,null,null,null,null,null,null,9,null,null,8,9,null,5,null,8,5,6,null,7,7,null,null,7,null,null,5,7,null,5,8,null,null,null,7,10,10,null,5,7,null,10,4,null,7,null,6,null,null,9,null,null,10,null,6,null,null,9,null,9,9,null,8,null,6,null,null,10,7,null,null,8,8,7,10,10,null,9,null,7,null,9,8,9,6,null,null,6,7,8,null,null,10,7,null,6,null,null,null,8,8,9,10,null,8,null,null,null,8,10,7,null,null,10,9,8,null,10,null,null,8,5,null,10,null,6,7,9,null,6,10,null,null,null,7,10,9,10,null,null,null,null,null,null,1934.5399999999997,{"$f":"IF(FX50 > 0,FW50/FX50,0)","v":7.883116883116883},607,77,{"$f":"MIN($C50:FT50)","v":4}]
[38,"Дюкарева Мария Юрьевна",null,7,null,null,7,null,null,5,null,4,null,null,7,null,null,10,6,null,7,8,null,null,null,4,9,null,8,4,null,null,4,null,null,null,7,null,9,6,10,null,null,null,null,9,null,null,null,null,7,null,7,null,7,null,5,null,9,null,5,null,null,null,10,null,7,10,null,null,null,6,null,null,8,8,null,null,5,null,null,8,null,null,null,null,6,null,7,null,null,null,7,null,null,null,null,null,7,5,7,null,null,null,null,null,10,null,null,null,null,8,null,8,7,8,8,null,8,8,7,8,null,null,10,8,null,7,null,null,6,10,9,9,8,null,8,null,8,7,10,null,null,null,null,10,10,7,null,10,null,null,9,8,null,10,9,7,9,10,null,8,9,null,null,null,7,8,9,10,null,null,null,null,null,null,1910.04,{"$f":"IF(FX51 > 0,FW51/FX51,0)","v":7.7179487179487181},602,78,{"$f":"MIN($C51:FT51)","v":4}]
[39,"Соловьева Маргарита Владимировна",null,6,7,null,9,null,null,7,null,7,null,null,7,null,null,10,7,null,7,null,null,null,null,5,9,null,null,4,null,null,8,null,10,null,null,null,8,8,10,null,null,null,null,10,null,null,null,null,5,null,7,null,7,null,8,null,8,null,5,null,null,null,null,6,7,10,null,null,null,7,null,null,7,null,null,null,null,9,null,8,null,null,null,null,8,7,6,null,null,null,null,null,null,null,null,null,8,4,null,10,null,null,null,10,10,null,null,null,null,8,null,8,9,7,7,null,8,8,8,7,7,null,10,8,null,8,null,7,7,8,9,null,10,6,8,null,6,null,null,10,null,8,null,10,10,6,null,7,null,null,9,5,null,10,null,7,8,9,null,6,null,10,null,null,8,8,9,10,null,null,null,null,null,null,1905.4499999999996,{"$f":"IF(FX52 > 0,FW52/FX52,0)","v":7.8205128205128203},610,78,{"$f":"MIN($C52:FT52)","v":4}]
[40,"Асекритова Екатерина Александровна",null,7,6,null,8,null,null,8,null,8,null,null,8,null,null,10,9,null,6,null,null,null,null,6,8,null,null,5,null,null,10,8,8,null,null,null,7,8,10,null,null,null,null,9,null,null,null,null,5,null,8,null,7,null,4,null,9,null,5,null,null,null,null,6,7,10,null,null,null,7,null,null,8,null,null,null,null,8,null,10,null,null,null,null,7,7,7,null,null,null,null,null,null,null,null,null,4,4,null,9,null,null,null,8,10,null,null,null,null,8,null,8,8,7,9,null,null,7,8,9,8,null,10,9,null,6,null,9,6,9,9,null,6,7,9,10,null,8,null,null,null,null,null,10,10,9,null,7,null,null,9,5,null,10,null,8,10,8,null,8,null,10,null,null,7,5,10,10,null,null,null,null,null,null,1894.3599999999997,{"$f":"IF(FX53 > 0,FW53/FX53,0)","v":7.8571428571428568},605,77,{"$f":"MIN($C53:FT53)","v":4}]
[41,"Кардаш Матвей Борисович",null,7,8,null,6,null,null,6,null,6,null,null,7,null,null,10,10,null,7,null,null,null,null,4,8,null,null,4,null,null,7,10,10,null,null,null,7,8,10,null,null,null,null,9,null,null,null,null,5,null,8,null,6,null,5,null,6,null,4,null,null,null,null,5,6,10,null,null,null,6,null,null,7,null,null,null,null,7,null,8,null,null,null,null,9,7,7,null,null,null,null,null,null,null,null,null,6,6,8,null,null,null,null,null,10,null,null,null,null,10,null,8,8,8,7,null,null,8,5,7,8,null,10,7,null,5,null,7,8,6,8,null,10,6,8,null,null,null,10,9,null,null,null,10,10,9,null,9,null,null,9,8,null,10,null,9,8,9,8,7,null,null,null,null,7,10,10,10,null,null,null,null,null,null,1889.54,{"$f":"IF(FX54 > 0,FW54/FX54,0)","v":7.7105263157894735},586,76,{"$f":"MIN($C54:FT54)","v":4}]
[42,"Максимов Егор Игоревич",null,8,8,null,8,null,null,8,null,6,null,null,9,null,null,10,7,null,9,null,null,null,null,6,9,null,null,6,null,null,9,8,8,null,null,null,8,8,10,null,null,null,null,9,null,null,null,null,4,null,5,null,null,null,5,null,7,null,4,null,null,null,null,6,7,10,null,null,null,6,null,null,8,null,null,null,null,8,null,9,null,null,null,null,10,7,6,null,null,null,null,null,null,null,null,null,null,7,6,null,null,null,null,null,10,null,null,null,null,10,null,8,7,7,9,null,null,7,7,7,8,null,10,7,null,5,null,6,6,5,7,null,9,5,8,9,null,null,null,5,null,null,null,10,9,9,null,9,null,null,9,5,null,10,null,8,8,9,8,5,null,null,null,null,9,7,9,10,null,null,null,null,null,null,1883.7199999999993,{"$f":"IF(FX55 > 0,FW55/FX55,0)","v":7.6351351351351351},565,74,{"$f":"MIN($C55:FT55)","v":4}]
[43,"Егорова Анна Андреевна",null,6,null,null,7,null,null,6,null,6,null,null,8,null,null,10,7,null,8,null,null,null,null,4,8,null,7,6,null,null,8,6,6,null,null,null,8,8,10,null,null,null,null,8,null,null,null,null,7,null,8,null,null,null,4,null,7,null,9,null,null,null,8,null,8,10,null,null,null,7,null,null,8,5,null,null,7,null,null,9,null,null,null,null,9,null,8,null,null,null,8,null,null,null,null,null,null,5,null,8,null,null,null,7,10,null,null,null,null,7,null,8,8,9,8,null,null,4,8,7,null,null,10,8,null,8,null,null,8,10,8,9,6,null,8,null,null,null,9,9,null,null,null,10,8,10,null,10,null,null,9,8,null,10,null,7,6,10,null,8,10,null,null,null,8,7,8,10,null,null,null,null,null,null,1880.58,{"$f":"IF(FX56 > 0,FW56/FX56,0)","v":7.8378378378378377},580,74,{"$f":"MIN($C56:FT56)","v":4}]
[44,"Василиади Елена Христоевна",null,6,8,null,5,null,null,10,null,7,null,null,7,null,null,10,10,null,8,null,null,null,null,7,8,null,null,4,null,null,7,null,null,null,null,null,8,7,10,null,null,null,null,10,null,null,null,null,6,null,7,null,8,null,4,null,6,null,4,null,null,null,null,4,7,10,null,null,null,7,null,null,7,null,null,null,null,6,null,9,null,null,null,null,5,6,8,null,null,null,null,null,null,null,null,null,7,6,9,null,null,null,null,8,10,null,null,null,null,7,null,8,9,7,10,null,null,9,7,9,7,null,10,10,null,7,null,8,7,9,10,null,8,7,8,null,null,null,10,10,null,null,null,10,10,9,null,8,null,null,9,9,null,10,null,10,9,10,10,8,null,null,null,null,6,9,8,10,null,null,null,null,null,null,1878.91,{"$f":"IF(FX57 > 0,FW57/FX57,0)","v":7.9733333333333336},598,75,{"$f":"MIN($C57:FT57)","v":4}]
[45,"Старкова Ольга Андреевна",null,7,null,null,7,null,null,6,null,6,null,null,7,null,null,10,8,null,8,10,null,null,null,4,9,null,7,6,null,null,9,8,8,null,null,null,8,9,10,null,null,null,null,8,null,null,null,null,8,null,8,null,7,null,4,null,6,null,8,null,null,null,6,null,7,10,null,null,null,8,null,null,7,6,null,null,6,null,null,8,null,null,null,null,6,null,7,null,null,null,6,null,null,null,null,null,7,4,8,null,null,null,null,8,10,null,null,null,null,9,null,8,8,8,7,null,6,7,6,7,null,null,10,8,null,5,null,null,7,8,7,7,5,null,8,10,7,null,null,9,null,null,null,10,7,10,null,10,null,null,9,5,null,10,null,6,9,9,null,8,8,null,null,null,8,10,8,10,null,null,null,null,null,null,1876.33,{"$f":"IF(FX58 > 0,FW58/FX58,0)","v":7.6455696202531644},604,79,{"$f":"MIN($C58:FT58)","v":4}]
[46,"Гудова Юлия Викторовна",null,8,null,null,null,null,null,null,null,null,null,null,7,null,null,null,null,null,8,null,null,null,null,null,8,null,null,null,null,null,8,null,null,null,null,null,null,9,null,null,null,null,9,8,6,null,null,null,6,null,8,null,null,null,4,null,8,null,10,null,null,null,6,null,7,10,null,4,null,6,null,null,9,6,null,null,5,null,null,9,null,7,null,null,10,null,8,null,null,9,7,null,null,9,null,5,null,5,null,9,null,null,4,7,10,null,6,null,null,8,null,9,8,10,6,null,null,9,6,7,null,null,10,7,null,4,null,null,6,5,7,7,9,null,8,null,null,null,10,8,null,null,null,10,9,8,9,9,null,null,8,6,null,10,9,8,6,9,null,7,null,null,9,null,4,8,9,10,null,null,null,null,null,null,1866.5000000000002,{"$f":"IF(FX59 > 0,FW59/FX59,0)","v":7.6301369863013697},557,73,{"$f":"MIN($C59:FT59)","v":4}]
[47,"Данилова Анастасия Андреевна",null,7,null,null,8,null,null,5,null,6,null,null,8,null,null,10,5,null,7,null,null,null,null,6,9,null,8,5,null,null,5,null,null,null,10,null,8,9,10,null,null,null,null,8,null,null,null,null,6,null,6,null,null,null,5,null,4,null,4,null,null,null,6,null,8,10,null,null,null,4,null,null,7,6,null,null,7,null,null,8,null,null,null,null,9,null,8,null,null,null,8,null,null,null,null,null,null,4,7,null,null,null,null,null,10,null,null,null,null,8,null,8,6,7,6,null,null,10,8,7,null,null,10,6,null,6,null,null,7,8,9,9,10,null,8,9,null,null,null,8,null,null,null,10,8,8,null,10,null,null,10,5,null,10,10,8,9,8,null,9,null,null,null,null,8,10,9,10,null,null,null,null,null,null,1865.0599999999997,{"$f":"IF(FX60 > 0,FW60/FX60,0)","v":7.6805555555555554},553,72,{"$f":"MIN($C60:FT60)","v":4}]
[48,"Милушкова Полина Юрьевна",null,7,8,null,7,null,null,6,null,5,null,null,8,null,null,10,10,null,8,null,null,null,null,4,9,null,null,5,null,null,9,8,8,null,null,null,9,8,10,null,null,null,null,8,null,null,null,null,7,null,9,null,9,null,5,null,9,null,8,null,null,null,null,7,7,10,null,null,null,6,null,null,7,null,null,null,null,5,null,8,null,null,null,null,7,7,9,null,null,null,null,null,null,null,null,null,9,8,null,8,null,null,null,null,10,null,null,null,null,9,null,8,7,7,8,null,null,9,6,7,8,null,10,8,null,6,null,7,6,7,9,null,9,6,8,null,null,null,6,8,null,null,null,10,10,9,null,7,null,null,10,5,null,10,null,4,7,8,null,6,9,null,null,null,8,10,10,10,null,null,null,null,null,null,1864.47,{"$f":"IF(FX61 > 0,FW61/FX61,0)","v":7.8157894736842106},594,76,{"$f":"MIN($C61:FT61)","v":4}]
[49,"Хачатрян Ангелина Владиславовна",null,6,8,null,6,null,null,10,null,7,null,null,9,null,null,10,6,null,6,null,null,null,null,5,9,null,null,6,null,null,7,null,null,null,7,null,7,8,10,null,null,null,null,8,null,null,null,null,7,null,7,null,null,null,4,null,8,null,4,null,null,null,null,6,8,10,null,null,null,6,null,null,10,null,null,null,null,7,null,9,null,null,null,null,8,7,6,null,null,null,null,null,null,null,null,null,null,4,7,null,null,null,null,8,10,null,null,null,null,9,null,8,8,9,7,null,null,8,7,8,7,null,10,7,null,5,null,7,6,9,8,null,8,7,9,null,null,null,8,10,null,null,null,10,10,10,null,7,null,null,9,6,null,10,null,5,8,8,null,6,null,10,null,null,7,7,10,10,null,null,null,null,null,null,1840.77,{"$f":"IF(FX62 > 0,FW62/FX62,0)","v":7.6891891891891895},569,74,{"$f":"MIN($C62:FT62)","v":4}]
[50,"Гернеза Варвара Андреевна",null,6,6,null,7,null,null,5,null,5,null,null,7,null,null,10,7,null,6,null,null,null,null,4,8,null,null,4,null,null,6,7,7,null,null,null,9,8,10,null,null,null,null,8,null,null,null,null,6,null,7,null,9,null,4,null,8,null,7,null,null,null,null,7,8,10,null,null,null,5,null,null,6,null,null,null,null,6,null,8,null,null,null,null,7,5,8,null,null,null,null,null,null,null,null,null,9,6,null,9,null,null,null,null,10,null,null,null,null,8,null,7,9,9,7,null,null,7,6,8,7,null,10,8,null,6,null,8,8,8,8,null,8,6,8,null,null,null,9,9,9,null,null,10,7,7,null,10,null,null,9,6,null,10,null,8,6,8,9,6,null,null,null,null,8,7,10,10,null,null,null,null,null,null,1836.0199999999998,{"$f":"IF(FX63 > 0,FW63/FX63,0)","v":7.5194805194805197},579,77,{"$f":"MIN($C63:FT63)","v":4}]
[51,"Зайцева Екатерина Николаевна",null,7,null,null,7,null,null,6,null,7,null,null,8,null,null,10,7,null,7,null,null,null,null,4,10,null,7,6,null,null,9,null,null,null,8,null,8,8,10,null,null,null,null,8,null,null,null,null,7,null,7,null,6,null,4,null,8,null,4,null,null,null,7,null,8,10,null,null,null,5,null,null,7,5,null,null,6,null,null,8,null,null,null,null,9,null,7,null,null,null,8,null,null,null,null,null,6,4,8,null,null,null,null,null,10,null,null,null,null,7,null,8,8,7,7,null,null,6,6,6,null,null,10,7,null,5,null,null,8,8,7,8,9,null,8,null,null,null,10,9,null,null,null,10,7,7,null,10,null,null,9,8,null,10,null,10,7,8,null,7,8,null,null,null,5,7,8,10,null,null,null,null,null,null,1830.15,{"$f":"IF(FX64 > 0,FW64/FX64,0)","v":7.5135135135135132},556,74,{"$f":"MIN($C64:FT64)","v":4}]
[52,"Гербер Александр Романович",null,7,null,null,6,null,null,9,null,6,null,null,7,null,null,10,5,null,5,null,null,null,null,5,9,null,4,4,null,null,7,null,8,null,null,null,7,6,10,null,null,null,null,6,null,null,null,null,4,null,8,null,9,null,6,null,8,null,5,null,null,null,9,null,6,10,null,null,null,8,null,null,6,8,null,null,8,null,null,8,null,null,null,null,9,null,8,null,null,null,6,null,null,null,null,null,8,7,8,null,null,null,null,null,10,null,null,null,null,9,null,8,9,9,9,null,null,7,8,7,null,null,10,9,null,6,null,null,6,8,7,8,7,null,8,null,null,5,null,null,9,9,null,10,8,10,null,8,null,null,4,10,null,10,null,8,8,10,8,8,null,null,null,null,8,7,8,10,null,null,null,null,null,null,1805.2299999999998,{"$f":"IF(FX65 > 0,FW65/FX65,0)","v":7.64},573,75,{"$f":"MIN($C65:FT65)","v":4}]
[53,"Мозжерова Анна Сергеевна",null,6,null,null,8,null,null,6,null,6,null,null,9,null,null,10,7,null,7,null,null,null,null,5,10,null,6,4,null,null,7,null,8,null,null,null,8,7,10,null,null,null,null,9,null,null,null,null,7,null,6,null,null,null,5,null,8,null,4,null,null,null,6,null,6,10,null,null,null,5,null,null,6,6,null,null,5,null,null,6,null,null,null,null,5,null,6,null,null,null,7,null,null,null,null,null,null,6,6,null,null,null,null,null,10,null,null,null,null,7,null,9,9,7,8,null,null,10,7,7,null,null,10,7,null,7,null,null,8,7,8,10,10,null,9,10,null,6,null,null,null,null,null,10,10,10,null,8,null,null,9,5,null,10,8,7,5,9,null,7,null,null,null,null,9,9,10,10,null,null,null,null,null,null,1799.98,{"$f":"IF(FX66 > 0,FW66/FX66,0)","v":7.5694444444444446},545,72,{"$f":"MIN($C66:FT66)","v":4}]
[54,"Игнатчук Ольга Ивановна",null,6,5,null,7,null,null,5,null,6,null,null,8,null,null,10,5,null,6,null,null,null,null,8,9,null,null,4,null,null,9,9,9,null,null,null,9,7,10,null,null,null,null,9,null,null,null,null,6,null,6,null,8,null,6,null,7,null,6,null,null,null,null,6,7,10,null,null,null,6,null,null,8,null,null,null,null,7,null,9,null,null,null,null,7,7,8,null,null,null,null,null,null,null,null,null,8,5,7,null,null,null,null,7,10,null,null,null,null,8,null,9,8,7,6,null,8,5,7,7,8,null,10,6,null,6,null,4,6,6,7,null,8,4,8,10,6,4,null,null,null,null,null,10,10,7,null,9,null,null,8,8,null,10,null,6,7,7,7,4,null,null,null,null,6,8,10,10,null,null,null,null,null,null,1799.6199999999997,{"$f":"IF(FX67 > 0,FW67/FX67,0)","v":7.3037974683544302},577,79,{"$f":"MIN($C67:FT67)","v":4}]
[55,"Асангулова Рахат Талантбековна",null,6,4,null,6,null,null,6,null,5,null,null,7,null,null,10,7,null,8,null,null,null,null,6,9,null,null,4,null,null,8,null,null,null,8,null,8,8,10,null,null,null,null,10,null,null,null,null,5,null,6,null,9,null,5,null,5,null,4,null,null,null,null,4,8,10,null,null,null,4,null,null,4,null,null,null,null,6,null,7,null,null,null,null,6,6,4,null,null,null,null,null,null,null,null,null,4,4,8,null,null,null,null,7,10,null,null,null,null,9,null,7,8,7,8,null,8,7,8,8,7,null,10,9,null,8,null,4,5,4,8,null,10,4,8,10,7,6,null,null,7,null,null,10,8,7,null,9,null,null,8,5,null,10,10,7,8,7,null,7,null,null,null,null,5,9,10,10,null,null,null,null,null,null,1791.01,{"$f":"IF(FX68 > 0,FW68/FX68,0)","v":7.1265822784810124},563,79,{"$f":"MIN($C68:FT68)","v":4}]
[56,"Козырев Макар Денисович",null,7,null,null,8,null,null,10,null,4,null,null,8,null,null,10,9,null,8,null,null,null,null,5,8,null,5,5,null,null,9,null,null,null,9,null,7,7,10,null,null,null,null,7,null,null,null,null,5,null,7,null,8,null,5,null,6,null,4,null,null,null,7,null,7,10,null,null,null,9,null,null,4,7,null,null,5,null,null,7,null,null,null,null,6,null,6,null,null,null,6,null,null,null,null,null,7,7,7,null,null,null,null,null,10,null,null,null,null,9,null,7,8,8,7,null,null,9,6,6,null,null,10,6,null,6,null,null,5,7,5,6,9,null,8,9,null,4,null,null,8,null,null,10,9,9,null,9,null,null,6,6,null,10,9,7,10,10,null,6,null,null,null,null,10,10,9,10,null,null,null,null,null,null,1785.75,{"$f":"IF(FX69 > 0,FW69/FX69,0)","v":7.4533333333333331},559,75,{"$f":"MIN($C69:FT69)","v":4}]
[57,"Реутова Полина Сергеевна",null,7,null,null,7,null,null,5,null,4,null,null,7,null,null,10,6,null,4,null,null,null,null,4,9,null,7,4,null,null,6,4,4,null,null,null,7,5,10,null,null,null,null,10,null,null,null,null,4,null,5,null,null,null,4,null,5,null,4,null,null,null,5,null,4,10,null,null,null,4,null,null,7,4,null,null,7,null,null,6,null,null,null,null,8,null,7,null,null,null,7,null,null,null,null,null,null,7,7,null,null,null,null,null,10,null,null,null,null,9,null,9,9,7,7,null,null,9,8,7,null,null,10,8,null,8,null,null,7,10,9,10,10,null,8,10,null,null,null,10,null,null,null,10,10,10,null,9,null,null,10,9,null,10,9,8,7,8,null,9,null,null,null,null,7,8,9,10,null,null,null,null,null,null,1780.49,{"$f":"IF(FX70 > 0,FW70/FX70,0)","v":7.4383561643835616},543,73,{"$f":"MIN($C70:FT70)","v":4}]
[58,"Мальцева Елизавета Олеговна",null,6,null,null,6,null,null,6,null,4,null,null,7,null,null,10,5,null,7,null,null,null,null,5,9,null,7,4,null,null,7,null,9,null,null,null,7,7,10,null,null,null,null,10,null,null,null,null,7,null,7,null,5,null,4,null,4,null,4,null,null,null,6,null,6,10,null,null,null,4,null,null,8,5,null,null,8,null,null,10,null,null,null,null,10,null,9,null,null,null,7,null,null,null,null,null,6,5,8,null,null,null,null,8,10,null,null,null,null,8,null,7,7,7,8,null,null,8,5,7,null,null,10,8,null,6,null,null,7,6,7,8,10,null,9,null,null,null,7,8,null,null,null,10,10,8,null,8,null,null,8,8,null,10,null,6,7,9,null,6,null,10,null,null,10,8,10,10,null,null,null,null,null,null,1774.8699999999997,{"$f":"IF(FX71 > 0,FW71/FX71,0)","v":7.44},558,75,{"$f":"MIN($C71:FT71)","v":4}]
[59,"Трубицына Александра Викторовна",null,7,9,null,6,null,null,9,null,5,null,null,8,null,null,10,5,null,8,null,null,null,null,7,8,null,null,6,null,null,8,8,8,null,null,null,7,6,10,null,null,null,null,9,null,null,null,null,6,null,5,null,null,null,5,null,5,null,4,null,null,null,null,8,9,10,null,null,null,5,null,null,8,null,null,null,null,7,null,8,null,null,null,null,6,4,5,null,null,null,null,null,null,null,null,null,null,8,9,null,null,null,null,null,10,null,null,null,null,7,null,7,9,7,5,null,null,10,7,9,7,null,10,5,null,6,null,9,8,7,6,null,2,5,8,null,null,null,7,5,null,null,null,10,10,6,null,8,null,null,9,8,null,10,null,7,5,8,8,7,null,null,null,6,7,4,10,10,null,null,null,null,null,null,1760.8999999999996,{"$f":"IF(FX72 > 0,FW72/FX72,0)","v":7.2666666666666666},545,75,{"$f":"MIN($C72:FT72)","v":2}]
[60,"Васильева Анастасия Руслановна",null,6,null,null,7,null,null,6,null,4,null,null,8,null,null,10,6,null,8,null,null,null,null,6,10,null,9,7,null,null,8,null,9,null,null,null,8,7,10,null,null,null,null,10,null,null,null,null,5,null,6,null,null,null,4,null,5,null,4,null,null,null,8,null,6,10,null,null,null,6,null,null,6,6,null,null,5,null,null,10,null,null,null,null,8,null,7,null,null,null,6,null,null,null,null,null,null,5,null,10,null,null,null,6,10,null,null,null,null,8,null,7,6,6,6,null,null,7,7,9,null,null,10,6,null,6,null,null,5,7,9,8,9,null,8,9,null,null,null,5,null,null,null,10,10,8,null,9,null,null,7,5,null,10,7,5,10,8,null,4,null,null,null,null,9,8,9,10,null,null,null,null,null,null,1757.04,{"$f":"IF(FX73 > 0,FW73/FX73,0)","v":7.3835616438356162},539,73,{"$f":"MIN($C73:FT73)","v":4}]
[61,"Рыженкова Майя Ильинична",null,6,null,null,8,null,null,5,null,6,null,null,7,null,null,10,6,null,4,null,null,null,null,5,9,null,5,6,null,null,7,null,null,null,8,null,8,8,10,null,null,null,null,9,null,null,null,null,7,null,7,null,null,null,4,null,8,null,5,null,null,null,7,null,7,10,null,null,null,4,null,null,8,6,null,null,10,null,null,9,null,null,null,null,7,null,8,null,null,null,7,null,null,null,null,null,null,5,8,null,null,null,null,null,10,null,null,null,null,8,null,7,6,9,8,null,null,7,6,7,null,null,10,8,null,5,null,null,6,8,8,8,9,null,8,null,null,null,9,8,null,null,null,10,10,8,null,9,null,null,8,4,null,10,null,7,8,8,null,5,null,9,null,null,6,7,8,10,null,null,null,null,null,null,1756.6899999999996,{"$f":"IF(FX74 > 0,FW74/FX74,0)","v":7.4444444444444446},536,72,{"$f":"MIN($C74:FT74)","v":4}]
[62,"Шанталова Александра Спартаковна",null,7,null,null,7,null,null,7,null,6,null,null,7,null,null,10,7,null,7,null,null,null,null,5,8,null,5,4,null,null,6,null,null,null,8,null,8,5,10,null,null,null,null,9,null,null,null,null,5,null,8,null,null,null,5,null,8,null,4,null,null,null,8,null,7,10,null,null,null,7,null,null,7,6,null,null,6,null,null,8,null,null,null,null,7,null,5,null,null,null,6,null,null,null,null,null,null,5,7,null,null,null,null,null,10,null,null,null,null,8,null,9,8,7,7,null,null,7,7,8,null,null,10,7,null,5,null,null,6,6,8,8,8,null,8,null,null,6,7,null,null,null,null,10,10,9,null,9,null,null,8,9,null,10,8,6,8,9,null,4,null,null,null,null,8,9,9,10,null,null,null,null,null,null,1735.43,{"$f":"IF(FX75 > 0,FW75/FX75,0)","v":7.375},531,72,{"$f":"MIN($C75:FT75)","v":4}]
[63,"Заикина Полина Никитична",null,6,null,null,6,null,null,7,null,5,null,null,7,null,null,10,7,null,8,null,null,null,null,4,8,null,5,6,null,null,6,6,6,null,null,null,7,7,10,null,null,null,null,9,null,null,null,null,5,null,7,null,null,null,4,null,7,null,4,null,null,null,8,null,7,10,null,null,null,6,null,null,7,6,null,null,8,null,null,9,null,null,null,null,4,null,6,null,null,null,6,null,null,null,null,null,null,6,null,8,null,null,null,6,10,null,null,null,null,9,null,8,8,8,8,null,null,7,5,6,null,null,10,9,null,5,null,null,6,6,7,8,10,null,8,10,null,null,null,8,null,null,null,10,10,6,null,10,null,null,9,5,null,10,6,6,6,9,null,6,null,null,null,null,5,7,9,10,null,null,null,null,null,null,1726.9099999999999,{"$f":"IF(FX76 > 0,FW76/FX76,0)","v":7.2162162162162158},534,74,{"$f":"MIN($C76:FT76)","v":4}]
[64,"Кириллов Евгений Александрович",null,7,null,null,6,null,null,7,null,4,null,null,9,null,null,10,7,null,7,null,null,null,null,5,10,null,9,5,null,null,8,null,8,null,null,null,9,7,10,null,null,null,null,8,null,null,null,null,6,null,7,null,6,null,4,null,7,null,4,null,null,null,10,null,7,10,null,null,null,6,null,null,9,8,null,null,4,null,null,9,null,null,null,null,10,null,7,null,null,null,6,null,null,null,null,null,6,5,null,8,null,null,null,null,10,null,null,null,null,9,null,7,6,7,7,null,null,5,5,7,null,null,10,5,null,5,null,null,6,5,7,4,10,null,6,null,null,null,5,8,null,null,null,10,10,6,null,5,null,null,8,5,null,10,null,6,8,8,6,4,null,null,null,null,6,7,8,10,null,null,null,null,null,null,1698.6599999999999,{"$f":"IF(FX77 > 0,FW77/FX77,0)","v":7.1081081081081079},526,74,{"$f":"MIN($C77:FT77)","v":4}]
[65,"Кречетова Ангелина Олеговна",null,8,null,null,8,null,null,4,null,5,null,null,7,null,null,10,4,null,5,null,null,null,null,4,9,null,7,4,null,null,6,4,4,null,null,null,6,8,10,null,null,null,null,10,null,null,null,null,4,null,5,null,null,null,4,null,10,null,5,null,null,null,5,null,7,10,null,null,null,6,null,null,4,4,null,null,8,null,null,6,null,null,null,null,7,null,4,null,null,null,5,null,null,null,null,null,null,4,4,null,null,null,null,null,10,null,null,null,null,10,null,8,9,5,4,null,null,5,7,8,null,null,10,5,null,4,null,null,5,6,7,8,10,null,7,null,null,4,7,null,null,null,null,10,10,8,null,10,null,null,8,9,null,10,null,4,6,9,null,4,null,10,null,null,8,8,10,10,null,null,null,null,null,null,1607.8500000000001,{"$f":"IF(FX78 > 0,FW78/FX78,0)","v":6.8219178082191778},498,73,{"$f":"MIN($C78:FT78)","v":4}]
[66,"Казокина Александра Сергеевна",null,5,null,null,6,null,null,6,null,6,null,null,8,10,null,10,7,null,7,null,null,null,null,4,7,null,7,4,null,null,7,null,null,null,null,null,6,4,10,7,null,null,null,6,null,null,null,null,4,null,6,null,9,null,1,null,6,null,4,null,null,null,4,null,7,10,null,null,null,5,null,null,4,4,null,null,5,null,null,8,null,null,null,null,6,null,5,null,null,null,5,null,null,null,null,null,9,4,6,null,null,null,null,null,10,null,null,null,null,10,null,6,7,4,7,null,9,6,7,5,null,null,10,6,null,4,null,null,4,6,6,6,5,null,7,null,9,4,9,null,null,null,null,10,10,7,null,9,7,4,9,5,null,10,7,7,6,9,null,4,9,null,null,null,4,6,9,10,null,null,null,null,null,null,1597.27,{"$f":"IF(FX79 > 0,FW79/FX79,0)","v":6.6},528,80,{"$f":"MIN($C79:FT79)","v":1}]
[67,"Андреева Мария Дмитриевна",null,7,8,null,7,null,null,4,null,4,null,null,7,null,null,10,5,null,4,null,null,null,null,4,8,null,null,4,null,null,5,null,null,null,null,null,4,4,10,6,null,null,null,8,null,null,null,null,6,null,6,null,null,null,6,null,5,null,4,null,null,null,null,5,5,10,null,null,null,6,null,null,4,null,null,null,null,4,null,7,null,null,null,null,6,4,5,null,null,null,null,null,null,null,null,null,null,4,8,null,null,null,null,null,10,null,null,null,null,7,null,8,5,6,4,null,null,7,5,7,7,null,10,5,null,6,null,4,4,7,7,null,7,5,8,null,null,null,null,8,null,10,null,10,8,10,null,7,null,null,9,5,10,null,null,6,6,8,null,7,null,10,null,null,6,9,10,10,null,null,null,null,null,null,1570.6499999999999,{"$f":"IF(FX80 > 0,FW80/FX80,0)","v":6.602739726027397},482,73,{"$f":"MIN($C80:FT80)","v":4}]
[68,"Голиков Александр Вячеславович",null,5,null,null,7,null,null,8,null,6,null,null,7,null,null,10,8,null,6,null,null,null,null,4,8,null,4,4,null,null,7,null,9,null,null,null,7,4,10,null,null,null,null,4,null,null,null,null,4,null,7,null,null,null,4,null,9,null,4,null,null,null,8,null,5,10,null,null,null,7,null,null,4,7,null,null,6,null,null,9,null,null,null,null,6,null,4,null,null,null,4,null,null,null,null,null,null,6,null,6,null,null,null,null,10,null,null,null,null,6,null,7,5,5,6,null,null,5,5,5,null,null,10,6,null,4,null,null,5,4,7,4,7,null,7,null,null,4,null,null,null,5,null,10,8,7,null,7,null,null,6,4,null,10,5,6,8,9,null,4,null,null,null,null,6,7,8,10,null,null,null,null,null,null,1473.94,{"$f":"IF(FX81 > 0,FW81/FX81,0)","v":6.3888888888888893},460,72,{"$f":"MIN($C81:FT81)","v":4}]